[Event "BL 2024-25"]
[Site "Austria"]
[Date "2024.10.09"]
[Round "1.24"]
[White "Mikes, Jan"]
[Black "Kulon, Klaudia"]
[Result "1/2-1/2"]
[ECO "C55"]
[WhiteElo "2349"]
[BlackElo "2395"]
[Annotator "RC"]
[PlyCount "129"]
[EventDate "2024.08.28"]
[EventType "team-tourn"]
[EventCountry "AUT"]
[SourceTitle "playchess.com"]
[Source "ChessBase"]
[SourceQuality "1"]
[WhiteTeam "Mistelbach"]
[BlackTeam "Wien-St Veit"]
[TimeControl "40/5400+30:1800+30"]

1. e4 {[%emt 0:00:04]} e5 {[%emt 0:00:06]} 2. Nf3 {[%emt 0:00:08]} Nc6 {[%emt 0:00:06]} 3. Bc4 {[%emt 0:01:22]} Nf6 {[%emt 0:00:07]} 4. d3 {[%emt 0:00:14]} h6 {[%emt 0:01:41]} 5. c3 {[%emt 0:01:21]} d6 {[%emt 0:00:23]} 6. O-O {[%emt 0:00:50]} g6 {[%emt 0:00:04]} 7. d4 {[%emt 0:01:42]} Qe7 {[%emt 0:00:11]} 8. Re1 {[%emt 0:03:24]} Bg7 {[%emt 0:00:06]} 9. h3 {[%emt 0:00:26]} O-O {[%emt 0:00:21]} 10. Nbd2 {[%emt 0:04:28]} Na5 {[%emt 0:06:13]} 11. Bf1 {[%emt 0:01:29]} c5 {[%emt 0:00:43]} 12. d5 {[%emt 0:12:58]} b6 {[%emt 0:00:08]} 13. b4 {[%emt 0:00:12]} Nb7 {[%emt 0:01:06]} 14. a4 {[%emt 0:00:54]} cxb4 {[%emt 0:09:11]} 15. cxb4 {[%emt 0:00:05]} Nd7 {[%emt 0:00:39]} 16. Rb1 {[%emt 0:04:54]} f5 {[%emt 0:06:05]} 17. exf5 {[%emt 0:11:35]} gxf5 {[%emt 0:00:06]} 18. Nd4 {[%emt 0:00:19]} Nf6 {[%emt 0:00:31]} 19. Ba6 {[%emt 0:02:06]} Kh8 {[%emt 0:03:37]} 20. Qf3 {[%emt 0:10:26]} e4 {[%emt 0:11:12]} 21. Qb3 {[%emt 0:00:34]} Nh5 {[%emt 0:06:54]} 22. Bb2 {[%emt 0:05:10]} Nf4 {[%emt 0:07:27]} 23. Nf1 {[%emt 0:06:17]} Na5 {[%emt 0:06:48]} 24. bxa5 {[%emt 0:03:09]} Bxa6 {[%emt 0:00:05]} 25. Ng3 {[%emt 0:02:49]} Qg5 {[%emt 0:01:18]} 26. axb6 {[%emt 0:05:44]} axb6 {[%emt 0:01:26]} 27. Ne6 {[%emt 0:06:39]} Nxe6 {[%emt 0:00:06]} 28. dxe6 {[%emt 0:00:03]} Rg8 {[%emt 0:02:47]} 29. Bc1 {[%emt 0:04:32]} Qg6 {[%emt 0:01:37]} 30. Qd5 {[%emt 0:03:17]} Be5 {[%emt 0:05:02]} 31. Bb2 {[%emt 0:00:45]} Qg7 {[%emt 0:10:26]} 32. Bxe5 {[%emt 0:01:11]} dxe5 {[%emt 0:00:01]} 33. Qd7 {[%emt 0:01:36]} Qg5 {[%emt 0:01:14]} 34. h4 {[%emt 0:00:34]} Qxh4 {[%emt 0:06:56]} 35. Nxf5 {[%emt 0:01:01]} Qg5 {[%emt 0:00:07]} 36. Ne3 {[%emt 0:02:13]} Rg7 {[%emt 0:02:09]} 37. Qd5 {[%emt 0:03:06]} Rag8 {[%emt 0:00:28]} 38. Rxb6 {[%emt 0:00:25]} Bd3 {[%emt 0:01:02]} 39. e7 {[%emt 0:00:39]} Rxe7 {[%emt 0:01:30]} 40. Re6 {[%emt 0:00:32]} Rxe6 {[%emt 0:01:20]} 41. Qxe6 {[%emt 0:30:05]} Qf4 {[%emt 0:34:31]} 42. a5 {[%emt 0:00:00]} h5 {[%emt 0:00:00]} 43. Qh3 {[%emt 0:00:00]} h4 {[%emt 0:00:00]} 44. g3 {[%emt 0:00:00]} Rg6 {[%emt 0:00:00]} 45. Ng2 {[%emt 0:00:00]} Qd2 {[%emt 0:00:00]} 46. Qxh4+ {[%emt 0:00:00]} Kg8 {[%emt 0:00:00]} 47. Qd8+ {[%emt 0:00:00]} Kh7 {[%emt 0:00:00]} 48. Qe7+ {[%emt 0:00:00]} Rg7 {[%emt 0:00:00]} 49. Qxe5 {[%emt 0:00:00]} Rf7 {[%emt 0:00:00]} 50. Qd4 {[%emt 0:00:00]} Qxa5 {[%emt 0:00:00]} 51. Ra1 {[%emt 0:00:00]} Qg5 {[%emt 0:00:00]} 52. Ra7 {[%emt 0:00:35]} Qc1+ {[%emt 0:00:00]} 53. Kh2 {[%emt 0:00:04]} Qh6+ {[%emt 0:00:00]} 54. Nh4 {[%emt 0:00:06]} Qg7 {[%emt 0:00:00]} 55. Qxg7+ {[%emt 0:02:36]} Kxg7 {[%emt 0:00:00]} 56. Rxf7+ {[%emt 0:00:07]} Kxf7 {[%emt 0:00:00]} 57. g4 {[%emt 0:00:19]} Kf6 {[%emt 0:00:10]} 58. Kg3 {[%emt 0:00:07]} Kg5 {[%emt 0:00:31]} 59. Nf5 {[%emt 0:01:10]} Be2 {[%emt 0:00:34]} 60. Nd6 {[%emt 0:00:04]} Bxg4 {[%emt 0:05:06]} 61. Nxe4+ {[%emt 0:00:18]} Kf5 {[%emt 0:00:05]} 62. Nd6+ {[%emt 0:01:00]} Kg5 {[%emt 0:00:10]} 63. f4+ {[%emt 0:00:28]} Kh5 {[%emt 0:00:05]} 64. f5 {[%emt 0:00:02]} Bxf5 {[%emt 0:00:04]} 65. Nxf5 {[%emt 0:00:04]} 1/2-1/2

[Event "BL 2024-25"]
[Site "Austria"]
[Date "2024.10.09"]
[Round "1.25"]
[White "Unuk, Laura"]
[Black "Abasov, Nijat"]
[Result "0-1"]
[ECO "D02"]
[WhiteElo "2304"]
[BlackElo "2619"]
[Annotator "TA"]
[PlyCount "74"]
[EventDate "2024.08.28"]
[EventType "team-tourn"]
[EventCountry "AUT"]
[SourceTitle "playchess.com"]
[Source "ChessBase"]
[SourceQuality "1"]
[WhiteTeam "Pamhagen"]
[BlackTeam "Feffernitz"]
[TimeControl "40/5400+30:1800+30"]

{[%evp 11,74,16,16,0,12,22,24,0,0,0,3,-7,0,-16,-3,0,32,25,19,12,50,-20,-18,-67,-66,-68,-72,-73,-55,-81,-75,-113,-129,-115,-112,-109,-123,-124,-116,-126,-127,-195,-184,-194,-187,-278,-267,-331,-316,-284,-295,-683,-652,-762,-751,-1050,-1031,-1093,-1067,-2938,-2691,-3036,-3241,-5614,-4276]} 1. d4 {[%emt 0:00:03]} Nf6 {[%emt 0:00:14]} 2. Nf3 {[%emt 0:00:29]} d5 {[%emt 0:00:16]} 3. Bf4 {[%emt 0:02:26]} c5 {[%emt 0:00:52]} 4. e3 {[%emt 0:00:05]} Nc6 {[%emt 0:00:09]} 5. Nbd2 {[%emt 0:02:59]} Bg4 {[%emt 0:00:51]} 6. c3 {[%emt 0:00:24]} e6 {[%emt 0:00:12]} 7. h3 {[%emt 0:00:05]} Bh5 {[%emt 0:01:23]} 8. Qb3 {[%emt 0:05:31]} Qc8 {[%emt 0:00:25]} 9. Be2 {[%emt 0:00:18] White has an edge.} h6 {[%emt 0:00:18]} 10. Bb5 {[%emt 0:29:46]} Nd7 {[%emt 0:05:14]} 11. O-O {[%emt 0:01:27]} a6 {[%emt 0:02:44]} 12. Bxc6 {[%emt 0:08:12]} Qxc6 {[%emt 0:00:38]} 13. c4 {[%emt 0:05:24]} dxc4 {[%emt 0:04:03]} 14. Qxc4 {[%emt 0:00:36]} Be7 {[%emt 0:06:41]} 15. Rfc1 {[%emt 0:04:17]} b5 {[%emt 0:14:30]} 16. Qe2 {[%emt 0:05:36]} (16. Qc3 $1 $14) 16... c4 $11 {[%emt 0:03:30]} 17. e4 {[%emt 0:06:27]} (17. a3 $11) 17... O-O $15 {[%emt 0:01:04]} 18. Qe3 {[%emt 0:01:28]} Rac8 {[%emt 0:04:56]} 19. a3 {[%emt 0:01:01]} Qb7 {[%emt 0:06:59]} 20. b3 {[%emt 0:03:01]} cxb3 {[%emt 0:00:47] [#] aiming for ...b2. Black is more active. Black continues to play with concentration.} 21. Qxb3 {[%emt 0:00:40]} Rxc1+ {[%emt 0:00:30]} 22. Rxc1 {[%emt 0:00:05]} Rc8 {[%emt 0:00:13] Prevents Rc7.} 23. Rc3 {[%emt 0:08:54]} Rxc3 {[%emt 0:05:16]} 24. Qxc3 {[%emt 0:00:10]} Nf6 {[%emt 0:01:20]} 25. Ne5 {[%emt 0:12:32]} Nxe4 {[%emt 0:04:01]} 26. Qc2 {[%emt 0:00:46]} (26. Qc6 $17 Qxc6 27. Nxc6 Nxd2 (27... Bxa3 $2 {perishes.} 28. Nxe4 f6 29. Bd6 $18) 28. Nxe7+ Kf8 29. Bxd2 Kxe7 30. f4) 26... Nxd2 $19 {[%emt 0:03:22]} 27. Bxd2 {[%emt 0:00:04]} f6 $36 {[%emt 0:01:43][%mdl 2048] Black is on the roll.} 28. Nc6 {[%emt 0:00:06]} (28. Ng6 {is a better defense.} Bxa3 29. Qb3 Bxg6 30. Qxa3) 28... Bxa3 {[%emt 0:00:21]} 29. Qb3 {[%emt 0:00:26] [#]} Bf8 {[%emt 0:03:23]} 30. Qxe6+ {[%emt 0:01:20]} Bf7 {[%emt 0:00:10]} 31. Qe4 {[%emt 0:00:33]} (31. Nd8) 31... b4 {[%emt 0:00:35] Black is clearly winning.} 32. Bc1 {[%emt 0:00:18]} a5 {[%emt 0:06:38]} 33. d5 {[%emt 0:00:22]} a4 {[%emt 0:00:27]} 34. Qc4 {[%emt 0:01:00]} a3 {[%emt 0:02:27]} 35. Bxh6 {[%emt 0:00:31]} gxh6 {[%emt 0:01:16]} 36. Qg4+ {[%emt 0:00:06]} Kh8 {[%emt 0:00:13]} 37. Qf5 {[%emt 0:00:56]} a2 {[%emt 0:00:20] Weighted Error Value: White=0.83/Black=0.04 (flawless) .  Mistake:       	White=5     	---        Inaccurate:     	White=2     	Black=2      OK:         	White=3     	Black=14     Best:        	White=1     	Black=5} 0-1

[Event "BL 2024-25"]
[Site "Austria"]
[Date "2024.10.09"]
[Round "1.26"]
[White "Karthik Venkataraman"]
[Black "Vitouch, Anatol"]
[Result "1-0"]
[ECO "D02"]
[WhiteElo "2581"]
[BlackElo "2287"]
[Annotator "TA"]
[PlyCount "83"]
[EventDate "2024.08.28"]
[EventType "team-tourn"]
[EventCountry "AUT"]
[SourceTitle "playchess.com"]
[Source "ChessBase"]
[SourceQuality "1"]
[WhiteTeam "Feffernitz"]
[BlackTeam "Pamhagen"]
[TimeControl "40/5400+30:1800+30"]

{[%evp 14,83,49,47,41,18,68,35,24,50,42,34,41,42,49,37,110,102,96,96,97,90,87,98,90,98,102,91,88,92,102,76,75,73,79,63,67,63,68,57,115,116,111,103,109,102,102,102,251,258,255,134,256,256,264,264,264,264,236,256,477,436,433,377,418,353,365,357,504,487,447,427]} 1. Nf3 {[%emt 0:00:16]} d5 {[%emt 0:00:07]} 2. g3 {[%emt 0:00:25]} c5 {[%emt 0:00:22]} 3. Bg2 {[%emt 0:00:21]} Nc6 {[%emt 0:00:06]} 4. d4 {[%emt 0:00:38]} Nf6 {[%emt 0:00:08]} 5. O-O {[%emt 0:00:06]} cxd4 {[%emt 0:00:10]} 6. Nxd4 {[%emt 0:00:07]} e5 {[%emt 0:00:09]} 7. Nxc6 {[%emt 0:00:15]} bxc6 {[%emt 0:00:05] [#]} 8. c4 $1 {[%emt 0:00:05]} Rb8 {[%emt 0:00:10]} (8... Be6 9. Qa4) 9. Qa4 {[%emt 0:10:12] Threatens to win with cxd5.} Rb4 {[%emt 0:14:15]} ({Black should try} 9... Bd7 $11) 10. Qxc6+ $14 {[%emt 0:13:13]} Bd7 {[%emt 0:00:16] White is slightly better.} 11. Qa6 {[%emt 0:00:05]} Ra4 {[%emt 0:17:32]} 12. Qb7 {[%emt 0:00:20] Strongly threatening b3.} Rxc4 {[%emt 0:00:06]} 13. Nc3 {[%emt 0:05:38]} (13. Bxd5 $2 Rb4 14. Bxf7+ (14. Qxa7 $2 Nxd5 15. Qa3 Be7 $19) (14. Qa8 $2 Rb8 $19) 14... Kxf7 15. Qxa7 Qc8 $19) 13... Rc7 {[%emt 0:10:13]} 14. Qa6 {[%emt 0:01:25][%cal Oc1g5] aiming for Bg5!} Be6 {[%emt 0:08:38]} (14... Rc6 $1 $14 15. Qxa7 Bc5) 15. Bg5 {[%emt 0:03:18]} Be7 {[%emt 0:07:10]} 16. Bxf6 {[%emt 0:00:47]} Bxf6 {[%emt 0:01:38]} 17. Qb5+ {[%emt 0:01:01]} Qd7 {[%emt 0:04:34]} 18. Bxd5 {[%emt 0:02:57]} Qxb5 {[%emt 0:01:34]} 19. Nxb5 {[%emt 0:00:07]} Rc5 {[%emt 0:00:19] [#]} 20. Rfd1 {[%emt 0:04:16] And now b4 would win. White is more active.} O-O {[%emt 0:11:20]} (20... Rxb5 21. Bc6+ Ke7 22. Bxb5 $18) 21. Nc3 {[%emt 0:01:18]} (21. Nxa7 $2 {perishes.} Rxd5 (21... Bxd5 22. b4 $17) 22. Rxd5 Bxd5 $19) 21... Bf5 {[%emt 0:00:34]} 22. Be4 {[%emt 0:05:56]} Bxe4 {[%emt 0:06:57]} 23. Nxe4 {[%emt 0:00:23]} Rc2 {[%emt 0:00:03][%csl LRb2,LRe2]} 24. Kf1 {[%emt 0:11:33]} Rxb2 {[%emt 0:00:43]} 25. Rd7 $36 {[%emt 0:00:05][%mdl 2048] White has some pressure.} a5 {[%emt 0:06:02]} 26. Ra7 {[%emt 0:05:05]} Rb4 {[%emt 0:01:18]} (26... Bd8 $14) 27. Nxf6+ $16 {[%emt 0:05:08]} gxf6 {[%emt 0:00:04]} 28. Rxa5 {[%emt 0:00:06][%mdl 4096] Endgame. KRR-KRR} Rc8 {[%emt 0:00:30]} 29. a4 {[%emt 0:02:41][%cal Ba2a4,Ba4b5,Bb5b6,Bb6b7][%mdl 32]} Rc2 {[%emt 0:02:06]} 30. Rb5 {[%emt 0:00:24]} Rxb5 {[%emt 0:01:43] Loses the game.} (30... Rd4 $16) 31. axb5 {[%emt 0:00:01] KR-KR} Rb2 {[%emt 0:00:07]} 32. Ra8+ {[%emt 0:04:00]} Kg7 {[%emt 0:00:04]} 33. Rb8 {[%emt 0:00:03]} Rb1+ {[%emt 0:01:57]} 34. Kg2 {[%emt 0:00:07]} f5 {[%emt 0:00:10]} 35. b6 {[%emt 0:02:45]} Kf6 {[%emt 0:02:02]} 36. f3 {[%emt 0:00:44]} Ke6 $2 {[%emt 0:02:36]} (36... Rb2 {keeps fighting.} 37. Kf2 Rb3) 37. b7 $18 {[%emt 0:02:24]} Ke7 {[%emt 0:00:12] Wards off Re8+} 38. Kf2 {[%emt 0:02:00]} Rb3 {[%emt 0:01:34]} 39. Ke1 {[%emt 0:00:34]} h6 {[%emt 0:01:31]} 40. Kd2 {[%emt 0:00:08]} Kd6 {[%emt 0:00:51]} (40... e4 $142 41. Kc2 Rb5 42. fxe4 fxe4) 41. Rd8+ {[%emt 0:30:22]} Kc7 {[%emt 0:30:04]} 42. Rf8 {[%emt 0:00:05] Weighted Error Value: White=0.08 (flawless) /Black=0.27 (precise) .  Mistake:       	---       	Black=6      Inaccurate:     	---       	Black=1      OK:         	White=17    	Black=9      Best:        	White=2     	Black=5} 1-0

[Event "BL 2024-25"]
[Site "Austria"]
[Date "2024.10.09"]
[Round "1.27"]
[White "Lovrinovic, Christian"]
[Black "Ghosh, Diptayan"]
[Result "1/2-1/2"]
[ECO "E20"]
[WhiteElo "2053"]
[BlackElo "2566"]
[Annotator "RC"]
[PlyCount "73"]
[EventDate "2024.08.28"]
[EventType "team-tourn"]
[EventCountry "AUT"]
[SourceTitle "playchess.com"]
[Source "ChessBase"]
[SourceQuality "1"]
[WhiteTeam "Pamhagen"]
[BlackTeam "Feffernitz"]
[TimeControl "40/5400+30:1800+30"]

1. d4 Nf6 2. c4 e6 3. Nc3 Bb4 4. g3 O-O 5. Bg2 d6 6. Nf3 Bxc3+ 7. bxc3 Nc6 8. Qd3 e5 9. Nd2 Nd7 10. e4 Qf6 11. Nb3 a5 12. a4 Nb6 13. d5 Ne7 14. c5 Nd7 15. cxd6 cxd6 16. O-O b6 17. Ba3 Ba6 18. c4 Ng6 19. Rfc1 Rfc8 20. Bh3 Ngf8 21. Rc3 Rc7 22. Rac1 Bc8 23. Bf1 h6 24. Qf3 Qe7 25. Bd3 Nh7 26. Qe3 Nhf6 27. f3 Ne8 28. Be2 Rb7 29. Rb1 Nc7 30. Rcc1 Na6 31. f4 f6 32. Bg4 Nf8 33. Bxc8 Rxc8 34. f5 Nd7 35. Nxa5 Rbc7 36. Nc6 Qf8 37. Rb5 1/2-1/2

[Event "BL 2024-25"]
[Site "Austria"]
[Date "2024.10.09"]
[Round "1.28"]
[White "Kunin, Vitaly"]
[Black "Fleischhacker, Christian"]
[Result "1-0"]
[ECO "D56"]
[WhiteElo "2528"]
[BlackElo "1873"]
[Annotator "TA"]
[PlyCount "51"]
[EventDate "2024.08.28"]
[EventType "team-tourn"]
[EventCountry "AUT"]
[SourceTitle "playchess.com"]
[Source "ChessBase"]
[SourceQuality "1"]
[WhiteTeam "Feffernitz"]
[BlackTeam "Pamhagen"]
[TimeControl "40/5400+30:1800+30"]

{[%evp 13,51,2,16,16,164,158,160,170,166,153,158,124,326,340,335,233,359,352,360,352,436,441,438,417,418,401,431,449,523,467,597,620,807,735,820,796,936,925,830,838]} 1. d4 {[%emt 0:00:12]} d5 {[%emt 0:00:23]} 2. c4 {[%emt 0:00:17]} e6 {[%emt 0:00:22]} 3. Nc3 {[%emt 0:00:42]} Nf6 {[%emt 0:00:22]} 4. Bg5 {[%emt 0:00:57][%cal Bc1g5,Bg5h4,Bh4e7][%mdl 32]} Be7 {[%emt 0:00:38]} 5. e3 {[%emt 0:00:11]} O-O {[%emt 0:01:27]} 6. Nf3 {[%emt 0:00:46]} h6 {[%emt 0:02:21]} 7. Bh4 {[%emt 0:00:29]} Ne4 {[%emt 0:06:41]} 8. Bxe7 {[%emt 0:00:13]} Nxc3 {[%emt 0:03:22]} (8... Qxe7 $11 {and Black stays safe.} 9. Rc1 Rd8) 9. Bxd8 $18 {[%emt 0:00:51]} (9. bxc3 Qxe7 10. cxd5 exd5 $15) 9... Nxd1 {[%emt 0:00:09]} 10. Be7 {[%emt 0:00:14] White is clearly better.} (10. Bxc7 Nxb2 11. c5 b6 $16) 10... Nxb2 {[%emt 0:01:24]} 11. Bxf8 {[%emt 0:00:11]} Kxf8 {[%emt 0:00:17]} 12. c5 {[%emt 0:06:17]} Bd7 $2 {[%emt 0:14:52] [#]} (12... b6 $16 {is a better defense.}) 13. Rb1 {[%emt 0:00:55]} Nc4 {[%emt 0:03:52]} 14. Rxb7 {[%emt 0:00:39]} Na6 {[%emt 0:00:29]} (14... Na5 {keeps fighting.}) 15. Bxc4 {[%emt 0:00:55]} dxc4 {[%emt 0:00:16]} 16. Ne5 {[%emt 0:00:20][%csl LRc4,LRd7]} Ke7 {[%emt 0:02:10]} 17. Nxd7 {[%emt 0:00:32]} ({Much less strong is} 17. Nxc4 Bc6 $18) 17... Kxd7 {[%emt 0:00:08][%mdl 4096] Endgame. KRR-KRN} 18. Kd2 {[%emt 0:00:19]} Nb8 {[%emt 0:02:19]} 19. Kc3 {[%emt 0:00:42]} Nc6 {[%emt 0:00:14]} 20. e4 {[%emt 0:00:18][%cal Be3e4,Be4d5,Bd5d6,Bd6c7][%mdl 32] White is clearly winning.} ({And not} 20. Kxc4 Na5+ 21. Kb5 Nxb7 $11) 20... f6 {[%emt 0:01:29]} 21. d5 {[%emt 0:00:30]} ({Not} 21. Kxc4 Na5+ 22. Kb5 Nxb7 $14) 21... exd5 {[%emt 0:02:03]} 22. exd5 {[%emt 0:00:10]} Ne5 {[%emt 0:00:24]} 23. d6 {[%emt 0:00:30]} Rc8 {[%emt 0:04:37]} 24. Rxa7 {[%emt 0:00:20]} Nc6 {[%emt 0:02:54]} 25. Rxc7+ {[%emt 0:00:25]} Rxc7 {[%emt 0:00:11]} 26. dxc7 {[%emt 0:00:11] Black got outplayed after the opening.   Weighted Error Value: White=0.17 (very precise) /Black=0.71.  Loses game:     	---       	Black=1      Mistake:       	---       	Black=2      Inaccurate:     	White=1     	Black=1      OK:         	White=8     	Black=4      Best:        	White=3     	---} 1-0

[Event "BL 2024-25"]
[Site "Austria"]
[Date "2024.10.09"]
[Round "1.29"]
[White "Horvath, Maria"]
[Black "Pajeken, Jakob Leon"]
[Result "0-1"]
[ECO "D04"]
[WhiteElo "1893"]
[BlackElo "2423"]
[Annotator "RC"]
[PlyCount "38"]
[EventDate "2024.08.28"]
[EventType "team-tourn"]
[EventCountry "AUT"]
[SourceTitle "playchess.com"]
[Source "ChessBase"]
[SourceQuality "1"]
[WhiteTeam "Pamhagen"]
[BlackTeam "Feffernitz"]
[TimeControl "40/5400+30:1800+30"]

1. d4 {[%emt 0:00:04]} Nf6 {[%emt 0:00:21]} 2. Nf3 {[%emt 0:00:16]} d5 {[%emt 0:00:15]} 3. e3 {[%emt 0:00:28]} c5 {[%emt 0:00:35]} 4. b3 {[%emt 0:00:48]} Nc6 {[%emt 0:01:34]} 5. Bb2 {[%emt 0:00:23]} cxd4 {[%emt 0:01:56]} 6. exd4 {[%emt 0:01:20]} Bg4 {[%emt 0:00:44]} 7. h3 {[%emt 0:06:01]} Bh5 {[%emt 0:00:41]} 8. g4 {[%emt 0:00:23]} Bg6 {[%emt 0:00:37]} 9. Nh4 {[%emt 0:00:07]} Be4 {[%emt 0:06:03]} 10. Rg1 {[%emt 0:05:46]} e6 {[%emt 0:09:24]} 11. Nd2 {[%emt 0:05:16]} Bd6 {[%emt 0:03:27]} 12. Nxe4 {[%emt 0:02:24]} Nxe4 {[%emt 0:00:07]} 13. Nf3 {[%emt 0:01:43]} Bb4+ {[%emt 0:05:33]} 14. Ke2 {[%emt 0:01:53]} Bc3 {[%emt 0:01:22]} 15. Qc1 {[%emt 0:00:32]} Qa5 {[%emt 0:00:44]} 16. a3 {[%emt 0:04:46]} Nxd4+ {[%emt 0:01:05]} 17. Nxd4 {[%emt 0:00:23]} Bxb2 {[%emt 0:00:06]} 18. Qxb2 {[%emt 0:03:02]} Qd2+ {[%emt 0:00:05]} 19. Kf3 {[%emt 0:00:07]} Qxf2# {[%emt 0:00:06]} 0-1

[Event "BL 2024-25"]
[Site "Austria"]
[Date "2024.10.09"]
[Round "1.31"]
[White "Sarana, Alexey"]
[Black "Dragnev, Valentin"]
[Result "0-1"]
[ECO "E45"]
[WhiteElo "2717"]
[BlackElo "2562"]
[Annotator "TA"]
[PlyCount "76"]
[EventDate "2024.08.28"]
[EventType "team-tourn"]
[EventCountry "AUT"]
[SourceTitle "playchess.com"]
[Source "ChessBase"]
[SourceQuality "1"]
[WhiteTeam "Linz"]
[BlackTeam "Ottakring"]
[TimeControl "40/5400+30:1800+30"]

{[%evp 17,76,20,19,20,11,0,0,-18,0,-31,-16,-17,0,0,1,0,2,0,8,-35,-15,-8,0,-31,-25,-73,-67,-76,-58,-66,-67,-126,-120,-125,-88,-90,-77,-216,-230,-208,-154,-227,-172,-285,-277,-257,-223,-335,-260,-367,-364,-527,-517,-642,-519,-554,-509,-635,-592,-816,-811]} 1. d4 {[%emt 0:00:03]} Nf6 {[%emt 0:00:11]} 2. c4 {[%emt 0:00:05]} e6 {[%emt 0:00:08]} 3. Nc3 {[%emt 0:00:03]} Bb4 {[%emt 0:00:22]} 4. e3 {[%emt 0:00:08]} b6 {[%emt 0:00:22]} 5. Nge2 {[%emt 0:00:19]} Ba6 {[%emt 0:00:30]} 6. a3 {[%emt 0:00:11]} Be7 {[%emt 0:00:26]} 7. Nf4 {[%emt 0:01:48]} d5 {[%emt 0:00:27]} 8. cxd5 {[%emt 0:10:16]} Bxf1 {[%emt 0:00:28]} 9. Kxf1 {[%emt 0:01:48]} exd5 {[%emt 0:00:26]} 10. g4 {[%emt 0:00:04]} O-O {[%emt 0:01:22]} 11. g5 {[%emt 0:04:10]} Ne4 {[%emt 0:01:34]} 12. Nfxd5 {[%emt 0:00:32] The position is equal.} Nxc3 {[%emt 0:00:51]} 13. Nxe7+ {[%emt 0:02:48]} Qxe7 {[%emt 0:00:08]} 14. bxc3 {[%emt 0:00:03]} Nc6 {[%emt 0:15:40]} 15. Rg1 {[%emt 0:04:02]} Na5 {[%emt 0:02:02]} 16. Rb1 {[%emt 0:01:10]} Qe4 {[%emt 0:15:10] Dodges Qd3} 17. Rb4 {[%emt 0:06:19]} Rad8 {[%emt 0:03:18]} 18. Qe2 {[%emt 0:03:01]} Rfe8 {[%emt 0:05:59][%mdl 1024] Black has compensation.} 19. f3 {[%emt 0:11:25]} Qc6 {[%emt 0:12:02]} 20. Bd2 {[%emt 0:09:16]} Qe6 {[%emt 0:11:21]} 21. Rg4 {[%emt 0:04:23]} (21. e4 $11) 21... c5 $17 {[%emt 0:02:56]} 22. Rb1 {[%emt 0:06:07]} Qa2 {[%emt 0:11:13][%csl LRa3,LRb1]} (22... Nc4 23. Bc1 $11) 23. Rd1 {[%emt 0:01:03]} Qxa3 {[%emt 0:04:01] Black is more active.} 24. Qd3 {[%emt 0:05:57]} (24. Kf2 $15) 24... Qb3 {[%emt 0:05:23]} 25. Qb1 {[%emt 0:05:46]} Qe6 {[%emt 0:01:34]} 26. Bc1 {[%emt 0:05:05]} Nc4 $36 {[%emt 0:01:11][%mdl 2048] Black is really pushing.} 27. Re1 {[%emt 0:01:56] White does not recover from this.} (27. e4 $17 {is a better defense.}) 27... cxd4 $19 {[%emt 0:01:16]} 28. cxd4 {[%emt 0:00:05]} a5 {[%emt 0:00:35]} 29. Kf2 {[%emt 0:03:50]} (29. Qb5 $17) 29... Qc6 {[%emt 0:01:03]} 30. Qf5 {[%emt 0:03:41]} (30. h4 $142) 30... Rd5 {[%emt 0:01:33]} 31. Qc2 {[%emt 0:01:02]} b5 {[%emt 0:00:42]} 32. Bb2 {[%emt 0:01:42]} (32. Bd2 $142) 32... Qd6 {[%emt 0:01:14]} 33. Kg1 {[%emt 0:01:43]} (33. f4 {keeps fighting.}) 33... Rxe3 {[%emt 0:00:54]} ({Not} 33... Nxe3 34. Qc3 f5 35. Rxe3 $11 (35. gxf6 Nxg4 36. Rxe8+ Kf7 $16)) 34. Rd1 {[%emt 0:02:02]} (34. Rxe3 $142 Nxe3 35. Qc8+ Qd8 36. Qxd8+ Rxd8 37. Rh4) 34... Qg6 {[%emt 0:00:19] Black is clearly winning.} 35. Qg2 {[%emt 0:00:25]} Nxb2 {[%emt 0:00:20]} 36. Qxb2 {[%emt 0:00:06]} Rxg5 {[%emt 0:00:13]} (36... Rxf3 $2 {perishes.} 37. Qe2 h5 38. Qxf3 $18) 37. Rxg5 {[%emt 0:00:10]} Qxg5+ {[%emt 0:00:02]} 38. Kf2 {[%emt 0:00:05] [#] Qc1 is the strong threat.} Qf4 {[%emt 0:00:30][%csl LRf3,LRh2] Weighted Error Value: White=0.56/Black=0.21 (precise) .  Mistake:       	White=8     	---        Inaccurate:     	White=4     	---        OK:         	White=7     	Black=10     Best:        	White=1     	Black=1} 0-1